lending/lending_fUSD_20250808
["ID","MTS","AMOUNT","RATE_DAILY","PERIOD"]
[377996716,1754657443825,-400.0,0.0001876,2]
[377996717,1754657443836,-400.0,0.0001876,2]
[377996718,1754657443846,-400.0,0.0001876,2]
[377996719,1754657443856,-513.36,0.0001876,2]
[377996720,1754657443866,-738.66,0.0001876,2]
[377996721,1754657443876,-400.0,0.0001876,2]
[377996722,1754657443886,-400.0,0.0001876,2]
[377996723,1754657443896,-746.89,0.0001876,2]
[377996724,1754657443906,-400.0,0.0001876,2]
[377996725,1754657443917,-400.0,0.0001876,2]
[377996726,1754657443927,-400.0,0.0001876,2]
[377996727,1754657443938,-603.76,0.0001876,2]
[377996728,1754657443948,-363.48001023,0.0001876,2]
[377996729,1754657443958,-1180.38,0.0001876,2]
[377996730,1754657443969,-400.0,0.0001876,2]
[377996731,1754657443979,-400.0,0.0001876,2]
[377996732,1754657443989,-746.26,0.0001876,2]
[377996733,1754657443999,-400.0,0.0001876,2]
[377996734,1754657444011,-400.0,0.0001876,2]
[377996735,1754657444023,-726.5,0.0001876,2]
[377996736,1754657444033,-400.0,0.0001876,2]
[377996737,1754657444043,-400.0,0.0001876,2]
[377996738,1754657444053,-546.13,0.0001876,2]
[377996739,1754657444064,-400.0,0.0001876,2]
[377996740,1754657444075,-440.16,0.0001876,2]
[377996741,1754657444086,-400.0,0.0001876,2]
[377996742,1754657444096,-721.45,0.0001876,2]
[377996743,1754657444107,-1042.64,0.0001876,2]
[377996744,1754657444117,-400.0,0.0001876,2]
[377996745,1754657444127,-400.0,0.0001876,2]
[377996746,1754657444137,-400.0,0.0001876,2]
[377996747,1754657444147,-400.0,0.0001876,2]
[377996748,1754657444158,-400.0,0.0001876,2]
[377996749,1754657444168,-476.83,0.0001876,2]
[377996750,1754657444182,-400.0,0.0001876,2]
[377996751,1754657444193,-400.0,0.0001876,2]
[377996752,1754657444206,-679.05,0.0001876,2]
[377996753,1754657444216,-471.7,0.0001876,2]
[377996754,1754657444226,-1041.87,0.0001876,2]
[377996755,1754657444237,-616.65,0.0001876,2]
[377996756,1754657444247,-593.0,0.0001876,2]
[377996757,1754657444258,-411.71,0.0001876,2]
[377996758,1754657444270,-400.0,0.0001876,2]
[377996759,1754657444280,-574.4,0.0001876,2]
[377996760,1754657444291,-2164.23,0.0001876,2]
[377996761,1754657444301,-624.36,0.0001876,2]
[377996762,1754657444311,-704.73,0.0001876,2]
[377996763,1754657444321,-400.0,0.0001876,2]
[377996764,1754657444333,-454.9,0.0001876,2]
[377996765,1754657444344,-1187.59,0.0001876,2]
[377996766,1754657444355,-1083.77,0.0001876,2]
[377996767,1754657444365,-400.0,0.0001876,2]
[377996768,1754657444376,-817.86,0.0001876,2]
[377996769,1754657444385,-1086.9,0.0001876,2]
[377996770,1754657444395,-481.82,0.0001876,2]
[377996771,1754657444405,-1408.69,0.0001876,2]
[377996772,1754657444418,-926.98,0.0001876,2]
[377996773,1754657444428,-523.06,0.0001876,2]
[377996774,1754657444438,-400.0,0.0001876,2]
[377996775,1754657444448,-588.51,0.0001876,2]
[377996776,1754657444458,-400.0,0.0001876,2]
[377996777,1754657444468,-10632.66,0.0001876,2]
[377996778,1754657444478,-765.75,0.0001876,2]
[377996779,1754657444488,-400.0,0.0001876,2]
[377996780,1754657444498,-400.0,0.0001876,2]
[377996781,1754657444508,-711.56,0.0001876,2]
[377996782,1754657444519,-1032.76,0.0001876,2]
[377996783,1754657444529,-400.0,0.0001876,2]
[377996784,1754657444539,-400.0,0.0001876,2]
[377996785,1754657444550,-400.0,0.0001876,2]
[377996786,1754657444560,-400.0,0.0001876,2]
[377996787,1754657444571,-400.0,0.0001876,2]
[377996788,1754657444582,-400.0,0.0001876,2]
[377996789,1754657444592,-400.0,0.0001876,2]
[377996790,1754657444602,-400.0,0.0001876,2]
[377996791,1754657444613,-400.0,0.0001876,2]
[377996792,1754657444623,-1053.34,0.0001876,2]
[377996793,1754657444633,-400.0,0.0001876,2]
[377996794,1754657444644,-753.67,0.0001876,2]
[377996795,1754657444654,-887.09,0.0001876,2]
[377996796,1754657444664,-897.08,0.0001876,2]
[377996797,1754657444674,-354.82,0.0001876,2]
[377996798,1754657444684,-1021.83,0.0001876,2]
[377996799,1754657444694,-400.0,0.0001876,2]
[377996800,1754657444704,-799.14,0.0001876,2]
[377996801,1754657444714,-1326.88,0.0001876,2]
[377996802,1754657444724,-639.34,0.0001876,2]
[377996803,1754657444735,-889.21,0.0001876,2]
[377996804,1754657444745,-400.0,0.0001876,2]
[377996805,1754657444755,-400.0,0.0001876,2]
[377996806,1754657444765,-400.0,0.0001876,2]
[377996807,1754657444775,-400.0,0.0001876,2]
[377996808,1754657444785,-446.64,0.0001876,2]
[377996809,1754657444795,-642.72,0.0001876,2]
[377996810,1754657444805,-732.64,0.0001876,2]
[377996811,1754657444815,-1456.53,0.0001876,2]
[377996812,1754657444825,-475.37,0.0001876,2]
[377996813,1754657444836,-577.34,0.0001876,2]
[377996814,1754657444846,-400.0,0.0001876,2]
[377996815,1754657444856,-400.0,0.0001876,2]
[377996816,1754657444867,-644.11,0.0001876,2]
[377996817,1754657444878,-712.1,0.0001876,2]
[377996818,1754657444889,-615.63,0.0001876,2]
[377996819,1754657444899,-730.34,0.0001876,2]
[377996820,1754657444909,-400.0,0.0001876,2]
[377996821,1754657444919,-400.0,0.0001876,2]
[377996822,1754657444930,-687.12,0.0001876,2]
[377996823,1754657444940,-555.24,0.0001876,2]
[377996824,1754657444950,-2582.53,0.0001876,2]
[377996825,1754657444960,-1087.38,0.0001876,2]
[377996826,1754657444971,-220.28792638,0.0001876,2]
[377996827,1754657444981,-543.86,0.0001876,2]
[377996828,1754657445278,-400.0,0.0001876,2]
[377996829,1754657445288,-1073.66,0.0001876,2]
[377996830,1754657445298,-486.23,0.0001876,2]
[377996831,1754657445308,-400.0,0.0001876,2]
[377996832,1754657445318,-400.0,0.0001876,2]
[377996833,1754657445327,-400.0,0.0001876,2]
[377996834,1754657445337,-925.0,0.0001876,2]
[377996835,1754657445347,-400.0,0.0001876,2]
[377996836,1754657445357,-400.0,0.0001876,2]
[377996837,1754657445366,-936.05,0.0001876,2]
[377996838,1754657445376,-400.0,0.0001876,2]
[377996839,1754657445386,-993.76,0.0001876,2]
[377996840,1754657445396,-791.96,0.0001876,2]
[377996841,1754657445406,-413.0397659,0.0001876,2]
[377996842,1754657445416,-400.0,0.0001876,2]
[377996843,1754657445425,-400.0,0.0001876,2]
[377996844,1754657445434,-400.0,0.0001876,2]
[377996845,1754657445443,-1258.51,0.0001876,2]
[377996846,1754657445452,-659.16,0.0001876,2]
[377996847,1754657445461,-400.0,0.0001876,2]
[377996848,1754657445471,-576.62,0.0001876,2]
[377996849,1754657445480,-400.0,0.0001876,2]
[377996850,1754657445489,-1090.03,0.0001876,2]
[377996851,1754657445499,-400.0,0.00018761,2]
[377996852,1754657445509,-550.69,0.00018761,2]
[377996853,1754657445518,-400.0,0.00018761,2]
[377996854,1754657445528,-400.0,0.00018761,2]
[377996855,1754657445537,-400.0,0.00018761,2]
[377996856,1754657445547,-615.76,0.00018761,2]
[377996857,1754657445557,-400.0,0.00018761,2]
[377996858,1754657445566,-487.65584336,0.00018761,2]
[377996859,1754657445578,-400.0,0.00018761,2]
[377996860,1754657445588,-400.0,0.00018761,2]
[377996861,1754657445597,-400.0,0.00018761,2]
[377996862,1754657445607,-400.0,0.00018761,2]
[377996863,1754657445617,-617.93,0.00018761,2]
[377996864,1754657445626,-400.0,0.00018761,2]
[377996865,1754657445636,-718.33,0.00018761,2]
[377996866,1754657445645,-400.0,0.00018761,2]
[377996867,1754657445655,-400.0,0.00018761,2]
[377996868,1754657445665,-400.0,0.00018761,2]
[377996869,1754657445675,-400.0,0.00018761,2]
[377996870,1754657445684,-1043.52,0.00018761,2]
[377996871,1754657445694,-400.0,0.00018761,2]
[377996872,1754657445704,-927.94,0.00018761,2]
[377996873,1754657445713,-616.87,0.00018761,2]
[377996874,1754657445723,-400.0,0.00018761,2]
[377996875,1754657445733,-400.0,0.00018761,2]
[377996876,1754657445743,-1277.92,0.00018761,2]
[377996877,1754657445752,-643.0,0.00018761,2]
[377996878,1754657445761,-498.48,0.00018761,2]
[377996879,1754657445771,-598.6,0.00018761,2]
[377996880,1754657445781,-953.64,0.00018761,2]
[377996881,1754657445790,-458.37,0.00018761,2]
[377996882,1754657445800,-500.0,0.00018761,2]
[377996883,1754657445810,-490.67,0.00018761,2]
[377996884,1754657445820,-634.66,0.00018761,2]
[377996885,1754657445829,-688.58,0.00018761,2]
[377996886,1754657445840,-665.67,0.00018761,2]
[377996887,1754657445850,-400.0,0.00018761,2]
[377996888,1754657445860,-400.0,0.00018761,2]
[377996889,1754657445870,-571.81,0.00018761,2]
[377996890,1754657445880,-687.11,0.00018761,2]
[377996891,1754657445889,-638.39,0.00018761,2]
[377996892,1754657445899,-584.66,0.00018761,2]
[377996893,1754657445908,-688.52,0.00018761,2]
[377996894,1754657445918,-828.89,0.00018761,2]
[377996895,1754657445927,-501.73,0.00018761,2]
[377996896,1754657445937,-400.0,0.00018761,2]
[377996897,1754657445946,-1354.98,0.00018761,2]
[377996898,1754657445956,-400.0,0.00018761,2]
[377996899,1754657445965,-858.48,0.00018761,2]
[377996900,1754657445975,-647.61,0.00018761,2]
[377996901,1754657445985,-456.78,0.00018761,2]
[377996902,1754657445995,-400.0,0.00018761,2]
[377996903,1754657446004,-400.0,0.00018761,2]
[377996904,1754657446014,-433.5,0.00018761,2]
[377996905,1754657446023,-858.09,0.00018761,2]
[377996906,1754657446033,-937.39,0.00018761,2]
[377996907,1754657446043,-1010.82,0.00018761,2]
[377996908,1754657446052,-400.0,0.00018761,2]
[377996909,1754657446062,-400.0,0.00018761,2]
[377996910,1754657446071,-743.9,0.00018761,2]
[377996911,1754657446080,-400.0,0.00018761,2]
[377996912,1754657446090,-941.91,0.00018761,2]
[377996913,1754657446099,-400.0,0.00018761,2]
[377996914,1754657446110,-548.24,0.00018761,2]
[377996915,1754657446119,-400.0,0.00018761,2]
[377996916,1754657446129,-700.56,0.00018761,2]
[377996917,1754657446138,-746.64,0.00018761,2]
[377996918,1754657446148,-1045.4,0.00018761,2]
[377996919,1754657446158,-400.0,0.00018761,2]
[377996920,1754657446167,-622.56,0.00018761,2]
[377996921,1754657446180,-400.0,0.00018761,2]
[377996922,1754657446190,-869.28,0.00018761,2]
[377996923,1754657446199,-602.85,0.00018761,2]
[377996924,1754657446208,-556.58,0.00018761,2]
[377996925,1754657446219,-400.0,0.00018761,2]
[377996926,1754657446229,-626.5,0.00018761,2]
[377996927,1754657446238,-641.3,0.00018761,2]
[377996928,1754657446248,-400.0,0.00018761,2]
[377996929,1754657446258,-400.0,0.00018761,2]
[377996930,1754657446267,-813.43,0.00018761,2]
[377996931,1754657446277,-651.27,0.00018761,2]
[377996932,1754657446287,-564.68,0.00018761,2]
[377996933,1754657446297,-951.78,0.00018761,2]
[377996934,1754657446307,-713.58,0.00018761,2]
[377996935,1754657446316,-458.71,0.00018761,2]
[377996936,1754657446326,-932.87,0.00018761,2]
[377996939,1754657446336,-643.5,0.00018761,2]
[377996940,1754657446346,-819.69,0.00018761,2]
[377996941,1754657446355,-400.0,0.00018761,2]
[377996942,1754657446365,-256.98126938,0.00018761,2]
[377996943,1754657446375,-400.0,0.00018761,2]
[377996944,1754657446384,-427.39,0.00018761,2]
[377996945,1754657446393,-400.0,0.00018761,2]
[377996946,1754657446404,-1223.68,0.00018761,2]
[377996947,1754657446414,-400.0,0.00018761,2]
[377996948,1754657446424,-400.0,0.00018761,2]
[377996949,1754657446435,-573.84,0.00018761,2]
[377996950,1754657446445,-590.59,0.00018761,2]
[377996951,1754657446455,-777.52,0.00018761,2]
[377996952,1754657446466,-975.77,0.00018761,2]
[377996953,1754657446475,-400.0,0.00018761,2]
[377996954,1754657446484,-400.0,0.00018761,2]
[377996955,1754657446494,-1042.95,0.00018761,2]
[377996956,1754657446504,-869.18,0.00018761,2]
[377996957,1754657446514,-594.1,0.00018761,2]
[377996958,1754657446525,-618.74,0.00018761,2]
[377996959,1754657446535,-756.11,0.00018761,2]
[377996960,1754657446547,-512.88,0.00018761,2]
[377996961,1754657446558,-548.19,0.00018761,2]
[377996962,1754657446568,-400.0,0.00018761,2]
[377996963,1754657446578,-1097.85,0.00018761,2]
[377996964,1754657446591,-453.4,0.00018761,2]
[377996965,1754657446601,-400.0,0.00018761,2]
[377996966,1754657446611,-595.79,0.00018761,2]
[377996967,1754657446621,-400.0,0.00018761,2]
[377996968,1754657446631,-628.47,0.00018761,2]
[377996969,1754657446640,-532.65,0.00018761,2]
[377996970,1754657446649,-1029.89,0.00018761,2]
[377996971,1754657446659,-643.42,0.00018761,2]
[377996972,1754657446669,-976.18,0.00018761,2]
[377996973,1754657446678,-400.0,0.00018761,2]
[377996974,1754657446688,-819.24,0.00018761,2]
[377996975,1754657446698,-596.33,0.00018761,2]
[377996976,1754657446707,-604.41,0.00018761,2]
[377996977,1754657446717,-400.0,0.00018761,2]
[377996978,1754657446726,-617.76,0.00018761,2]
[377996979,1754657446737,-441.94,0.00018761,2]
[377996980,1754657446747,-400.0,0.00018761,2]
[377996981,1754657446756,-400.0,0.00018761,2]
[377996982,1754657446765,-400.0,0.00018761,2]
[377996983,1754657446774,-575.1,0.00018761,2]
[377996984,1754657446783,-400.0,0.00018761,2]
[377996985,1754657446793,-400.0,0.00018761,2]
[377996986,1754657446803,-625.16,0.00018761,2]
[377996987,1754657446813,-517.71,0.00018761,2]
[377996988,1754657446822,-683.64,0.00018761,2]
[377996989,1754657446832,-474.22,0.00018761,2]
[377996990,1754657446843,-810.9,0.00018761,2]
[377996991,1754657446852,-400.0,0.00018761,2]
[377996992,1754657446862,-400.0,0.00018761,2]
[377996993,1754657446871,-621.2,0.00018761,2]
[377996994,1754657446881,-665.36,0.00018761,2]
[377996995,1754657446891,-400.0,0.00018761,2]
[377996996,1754657446901,-400.0,0.00018761,2]
[377996997,1754657446910,-528.22,0.00018761,2]
[377996998,1754657446920,-541.32887096,0.00018761,2]
[377996999,1754657446929,-682.64,0.00018761,2]
[377997000,1754657446939,-400.0,0.00018761,2]
[377997001,1754657446949,-400.0,0.00018761,2]
[377997002,1754657446959,-400.0,0.00018761,2]
[377997003,1754657446968,-1024.44,0.00018761,2]
[377997004,1754657446978,-881.5,0.00018761,2]
[377997005,1754657446988,-1026.9,0.00018761,2]
[377997006,1754657446998,-650.99,0.00018761,2]
[377997007,1754657447007,-400.0,0.00018761,2]
[377997008,1754657447017,-400.0,0.00018761,2]
[377997009,1754657447028,-400.0,0.00018761,2]
[377997010,1754657447044,-417.24,0.00018761,2]
[377997011,1754657447054,-840.57,0.00018761,2]
[377997012,1754657447064,-919.3,0.00018761,2]
[377997013,1754657447074,-400.0,0.00018761,2]
[377997014,1754657447085,-943.24,0.00018761,2]
[377997015,1754657447095,-540.76,0.00018761,2]
[377997016,1754657447106,-400.0,0.00018761,2]
[377997017,1754657447116,-400.0,0.00018761,2]
[377997018,1754657447128,-400.0,0.00018761,2]
[377997019,1754657447139,-1001.11,0.00018761,2]
[377997020,1754657447150,-400.0,0.00018761,2]
[377997021,1754657447161,-510.07,0.00018761,2]
[377997022,1754657447173,-400.0,0.00018761,2]
[377997023,1754657447184,-580.27,0.00018761,2]
[377997024,1754657447195,-400.0,0.00018761,2]
[377997025,1754657447206,-400.0,0.00018761,2]
[377997026,1754657447215,-654.24,0.00018761,2]
[377997027,1754657447225,-728.75,0.00018761,2]
[377997028,1754657447234,-500.0,0.00018761,2]
[377997029,1754657447244,-670.86,0.00018761,2]
[377997030,1754657447254,-201.7739646,0.00018761,2]
[377997031,1754657447263,-400.0,0.00018761,2]
[377997032,1754657447273,-400.0,0.00018761,2]
[377997033,1754657447282,-400.0,0.00018761,2]
[377997034,1754657447292,-712.52,0.00018761,2]
[377997035,1754657447301,-531.6,0.00018761,2]
[377997036,1754657447311,-400.0,0.00018761,2]
[377997037,1754657447320,-438.76,0.00018761,2]
[377997038,1754657447330,-400.0,0.00018761,2]
[377997039,1754657447339,-418.79,0.00018761,2]
[377997040,1754657447350,-400.0,0.00018761,2]
[377997041,1754657447359,-998.16,0.00018761,2]
[377997042,1754657447368,-400.0,0.00018761,2]
[377997043,1754657447378,-400.0,0.00018761,2]
[377997044,1754657447388,-156.58545951,0.00018761,2]
[377997045,1754657447400,-241.12116424,0.00018761,2]
[377997046,1754657447410,-150.0,0.00018761,2]
[377997047,1754657447420,-699.33,0.00018761,2]
[377997048,1754657447429,-400.0,0.00018761,2]
[377997049,1754657447439,-150.0,0.00018761,2]
[377997050,1754657447449,-150.0,0.00018761,2]
[377997051,1754657447458,-488.13,0.00018761,2]
[377997052,1754657447468,-150.0,0.00018761,2]
[377997053,1754657447477,-150.0,0.00018761,2]
[377997054,1754657447487,-500.0,0.00018761,2]
[377997055,1754657447496,-518.94,0.00018761,2]
[377997056,1754657447505,-737.55,0.00018761,2]
[377997057,1754657447515,-689.93,0.00018761,2]
[377997058,1754657447524,-739.85,0.00018761,2]
[377997059,1754657447534,-694.04,0.00018761,2]
[377997060,1754657447543,-400.0,0.00018761,2]
[377997061,1754657447553,-400.0,0.00018761,2]
[377997062,1754657447562,-400.0,0.00018761,2]
[377997063,1754657447572,-2554.53,0.00018762,2]
[377997064,1754657447581,-400.0,0.00018762,2]
[377997065,1754657447591,-437.37,0.00018762,2]
[377997066,1754657447600,-1676.42,0.00018762,2]
[377997067,1754657447610,-939.23,0.00018762,2]
[377997068,1754657447700,-953.88,0.00018762,2]
[377997069,1754657447710,-400.0,0.00018762,2]
[377997070,1754657447720,-4888.24,0.00018762,2]
[377997071,1754657447729,-1045.06,0.00018762,2]
[377997072,1754657447739,-1232.51,0.00018762,2]
[377997073,1754657447748,-813.63,0.00018762,2]
[377997074,1754657447757,-405.43,0.00018762,2]
[377997075,1754657447766,-1014.52,0.00018762,2]
[377997076,1754657447775,-2079.8,0.00018762,2]
[377997077,1754657447785,-774.35,0.00018762,2]
[377997078,1754657447794,-970.64,0.00018762,2]
[377997079,1754657447803,-1743.14,0.00018762,2]
[377997080,1754657447813,-300.0,0.00018764,2]
[377997081,1754657447822,-500.0,0.00018795,2]
[377997082,1754657447832,-150.0,0.00018805,2]
[377997083,1754657447841,-150.0,0.00018805,2]
[377997084,1754657447851,-1423.52,0.00018839,2]
[377997085,1754657447860,-160.0,0.00018844,2]
[377997086,1754657447869,-200092.86,0.00018855,2]
[377997087,1754657447879,-814.91461466,0.00018867,2]
[377997088,1754657447888,-507.43284116,0.00018869,2]
[377997089,1754657447898,-358.44396,0.0001889,2]
[377997090,1754657447908,-165.43627044,0.000189,2]
[377997091,1754657447917,-550.81,0.000189,2]
[377997092,1754657447926,-172.93,0.000189,2]
[377997093,1754657447936,-157.78440529,0.000189,2]
[377997094,1754657447945,-150.0,0.00018902,2]
[377997095,1754657447955,-152.28851989,0.00018919,2]
[377997096,1754657447965,-150.0,0.00018966,2]
[377997097,1754657447974,-842.44706758,0.00018966,2]
[377997098,1754657447984,-457.64618948,0.00018966,2]
[377997099,1754657448002,-211.62674257,0.00018966,2]
[377997100,1754657448014,-500.0,0.00018973,2]
[377997101,1754657448023,-344.3691883,0.00018981,2]
[377997102,1754657448031,-213.24272787,0.0001899,2]
[377997103,1754657448040,-476.7980339,0.00018994,2]
[377997104,1754657448048,-400.0,0.00018999,2]
[377997105,1754657448057,-400.0,0.00018999,2]
[377997106,1754657448066,-473.98,0.00018999,2]
[377997107,1754657448075,-1018.0,0.00018999,2]
[377997108,1754657448084,-1064.29,0.00018999,2]
[377997109,1754657448093,-10137.70927146,0.00018999,2]
[377997110,1754657448103,-815.42,0.00018999,2]
[377997111,1754657448113,-1250.02,0.00018999,2]
[377997112,1754657448122,-1578.34,0.00018999,2]
[377997113,1754657448131,-961.3,0.00018999,2]
[377997114,1754657448140,-439999.96987588,0.00019,2]
[377997115,1754657450281,-832.53922048,0.00018758,2]
[377997116,1754657450967,-289.36077952,0.00018758,2]
[377997117,1754657450976,-137.20622252,0.00018758,2]
[377997118,1754657657149,167.28,0.00017992,2]
[377997119,1754657675049,1011.02852,0.000301,120]
[377997120,1754657690290,1009.24,0.000301,120]
[377997121,1754657698197,1000.0,0.000301,120]
[377997123,1754657838466,180.29870258,0.00018,2]
[377997124,1754657849532,1110.37,0.00017905,2]
[377997125,1754657853195,10135.78621241,0.00017905,2]
[377997126,1754657853219,13764.21378759,0.00017905,2]
[377997127,1754657867261,1235.78621241,0.00018,2]
[377997128,1754657867669,8901.92305905,0.00018,2]
[377997130,1754657903169,1000.0,0.00017907,2]
[377997131,1754657938639,150.0,0.00017889,2]
[377997135,1754658011611,2734.62345887,0.00018007,2]
[377997136,1754658025732,262.22,0.00017874,2]
[377997137,1754658030842,283.02,0.00017863,2]
[377997138,1754658031991,158.60580106,0.00017894,20]
[377997139,1754658032966,175.0,0.00017863,7]
[377997140,1754658035081,1072.84,0.00017863,2]
[377997141,1754658046087,261.76768102,0.00017628,2]
[377997142,1754658046110,262.23231898,0.00017628,2]
[377997155,1754658077239,5538.39,0.00017871,2]
[377997160,1754658082116,200.0,0.0003,120]
[377997162,1754658099691,200.0,0.00017863,2]
[377997163,1754658147104,263.5,0.00017906,2]
[377997164,1754658160289,180.29870258,0.00017968,2]
[377997168,1754658204129,150.0,0.00017903,2]
[377997169,1754658217476,987.99,0.00017903,2]
[377997170,1754658250508,150.0,0.000171,2]
[377997171,1754658251533,698.19,0.00015068,2]
[377997172,1754658252537,698.19,0.0001666,2]
[377997173,1754658262329,250.0,0.00017882,2]
[377997174,1754658280864,1766.93,0.00017882,2]
[377997175,1754658294361,416.08,0.00017882,2]
[377997176,1754658294571,416.08,0.00017892,2]
[377997177,1754658295155,416.08,0.00017901,2]
[377997178,1754658295213,416.08,0.0001791,2]
[377997179,1754658296023,416.08,0.0001792,2]
[377997180,1754658296238,416.08,0.00017929,2]
[377997181,1754658296448,416.08,0.00017939,2]
[377997182,1754658296674,416.08,0.00017948,2]
[377997183,1754658297149,416.08,0.00017958,2]
[377997184,1754658297317,109.55897844,0.00017967,2]
[377997185,1754658297338,306.52102156,0.00017967,2]
[377997186,1754658297559,416.08,0.00017976,2]
[377997187,1754658297769,416.08,0.00017986,2]
[377997188,1754658298223,416.08,0.00017995,2]
[377997189,1754658298638,416.08,0.00018005,2]
[377997190,1754658314608,150.20785812,0.00017852,2]
[377997191,1754658316956,150.0,0.00017852,2]
[377997192,1754658317162,150.0,0.00017852,2]
[377997193,1754658317712,150.0,0.00017852,2]
[377997194,1754658322799,150.60752029,0.00017852,2]
[377997195,1754658323340,150.0,0.00017852,2]
[377997196,1754658323842,150.0,0.00017852,2]
[377997197,1754658326149,150.0,0.00017852,2]
[377997198,1754658327830,150.0,0.00017852,2]
[377997199,1754658333831,150.00000001,0.00017852,2]
[377997200,1754658333884,150.0,0.00017852,2]
[377997201,1754658335105,150.0,0.00017852,2]
[377997202,1754658335191,254.09494194,0.00017852,2]
[377997203,1754658337715,226.18747037,0.00017852,2]
[377997204,1754658338576,165.71981349,0.00017852,2]
[377997205,1754658338886,150.0,0.00017852,2]
[377997207,1754658423342,274.35,0.00013699,2]
[377997208,1754658503093,10157.99137422,0.00018,2]
[377997209,1754658503113,10516.74255152,0.00018,2]
[377997210,1754658511825,587.51,0.0001752,2]
[377997275,1754658629226,150.0,0.00017432,20]
[377997279,1754658632023,-416.08,0.00018014,2]
[377997280,1754658632033,-250.0,0.00018019,2]
[377997281,1754658632043,-416.08,0.00018024,2]
[377997282,1754658632052,-416.08,0.00018033,2]
[377997283,1754658632062,-416.08,0.00018042,2]
[377997284,1754658632071,-416.08,0.00018052,2]
[377997285,1754658632080,-267.46074303,0.00018058,2]
[377997286,1754658632090,-416.08,0.00018061,2]
[377997287,1754658632099,-1452.21,0.00018068,5]
[377997288,1754658632108,-200.0,0.00018068,2]
[377997289,1754658632118,-150.99,0.00018068,2]
[377997290,1754658632127,-150.0,0.00018135,2]
[377997291,1754658632137,-150.0,0.00018135,2]
[377997292,1754658632146,-150.0,0.00018183,2]
[377997293,1754658632155,-150.0,0.00018249,2]
[377997294,1754658632164,-698.19,0.00018251,2]
[377997295,1754658632173,-150.0,0.0001828,2]
[377997296,1754658632183,-1200.0,0.00018418,2]
[377997297,1754658632193,-150.0,0.00018419,2]
[377997298,1754658632202,-150.0,0.00018419,2]
[377997299,1754658632212,-150.0,0.00018513,2]
[377997300,1754658632221,-262.22,0.00018544,2]
[377997301,1754658632231,-150.0,0.00018645,2]
[377997302,1754658632240,-241.05843181,0.00018659,2]
[377997303,1754658632250,-182.52,0.0001866,2]
[377997304,1754658632259,-814.91461467,0.00018695,2]
[377997305,1754658632269,-150.0,0.00018702,2]
[377997306,1754658632279,-150.0,0.00018702,2]
[377997307,1754658632288,-160.0,0.00018748,2]
[377997308,1754658632297,-240.73,0.00018749,2]
[377997309,1754658632307,-1054.82869857,0.00018758,5]
[377997310,1754658632317,-608.22,0.00018758,2]